bitfinex-derivatives/quotes_BTCF0:USTF0_20250910
["timestamp","ask_amount","ask_price","bid_price","bid_amount"]
[1757529612808,0.005,113640.0,113630.0,1.3616805]
[1757529614203,0.02670305,113640.0,113630.0,1.3616805]
[1757529614810,0.0267011,113640.0,113630.0,1.3616805]
[1757529616913,0.0267011,113640.0,113630.0,0.5366005]
[1757529617114,0.0267011,113640.0,113630.0,1.3612005]
[1757529617309,0.0393311,113640.0,113630.0,1.3612005]
[1757529621013,0.0267011,113640.0,113630.0,1.787001]
[1757529622210,0.0267011,113640.0,113630.0,1.8749927]
[1757529622402,0.005,113640.0,113630.0,1.8749927]
[1757529622802,0.005,113640.0,113630.0,1.787001]
[1757529623013,0.02669289,113640.0,113630.0,1.787001]
[1757529623412,0.02669289,113640.0,113630.0,1.786641]
[1757529627817,0.02669289,113640.0,113630.0,1.874633]
[1757529628015,0.02669289,113640.0,113630.0,0.6108]
[1757529628211,0.04061289,113640.0,113630.0,0.962401]
[1757529628415,0.04061289,113640.0,113630.0,1.55177347]
[1757529628613,0.02669289,113640.0,113630.0,1.55177347]
[1757529629520,0.02669289,113640.0,113630.0,1.43464]
[1757529629718,0.02669289,113640.0,113630.0,1.66890694]
[1757529629922,0.02669289,113640.0,113630.0,0.84506694]
[1757529630118,0.02669289,113640.0,113630.0,1.55169347]
[1757529630317,0.02669289,113640.0,113630.0,0.72793347]
[1757529630515,0.02669289,113640.0,113630.0,1.55165347]
[1757529631122,0.02669289,113640.0,113630.0,1.66878694]
[1757529631311,0.02669289,113640.0,113630.0,1.75677884]
[1757529633125,0.02669289,113640.0,113630.0,1.75661884]
[1757529634516,0.02669289,113640.0,113630.0,1.50661884]
[1757529634716,0.01263,113660.0,113650.0,0.23426694]
[1757529634921,0.03327887,113670.0,113650.0,1.04384334]
[1757529634922,0.01305,113670.0,113650.0,1.04384334]
[1757529635128,0.01305,113670.0,113660.0,0.80016911]
[1757529635317,0.00042,113670.0,113660.0,0.80016911]
[1757529635712,0.00042,113670.0,113660.0,0.68303564]
[1757529635918,0.00042,113670.0,113660.0,0.75461026]
[1757529636116,0.00042,113670.0,113660.0,0.76332592]
[1757529636525,0.00042,113670.0,113660.0,0.75932592]
[1757529636825,0.00042,113670.0,113660.0,0.87645939]
[1757529637026,0.00042,113670.0,113660.0,0.75932592]
[1757529638118,0.00042,113670.0,113660.0,0.76232592]
[1757529638714,0.01434,113680.0,113660.0,0.76232592]
[1757529638919,0.01434,113680.0,113670.0,1.30113347]
[1757529639219,0.01434,113680.0,113670.0,1.3191771]
[1757529640028,0.01434,113680.0,113670.0,0.4959771]
[1757529641125,0.01434,113680.0,113670.0,0.4969771]
[1757529641529,0.03577,113680.0,113670.0,0.4969771]
[1757529641825,0.03577,113680.0,113670.0,0.4999771]
[1757529642022,0.03577,113680.0,113670.0,1.3229371]
[1757529642722,0.03577,113680.0,113670.0,0.4999771]
[1757529642925,0.03577,113680.0,113670.0,1.3228971]
[1757529645028,0.03577,113680.0,113670.0,1.3227371]
[1757529645527,0.52003694,113680.0,113670.0,0.38284363]
[1757529645723,0.52003694,113680.0,113670.0,1.20556363]
[1757529645927,0.52003694,113680.0,113670.0,0.38284363]
[1757529646128,0.52003694,113680.0,113670.0,0.004]
[1757529646424,0.52003694,113680.0,113670.0,0.01279]
[1757529646425,0.64657,113680.0,113670.0,0.01279]
[1757529646625,0.30731185,113680.0,113670.0,0.37359]
[1757529647029,0.42444532,113680.0,113670.0,0.01279]
[1757529647223,0.54157879,113680.0,113670.0,0.01279]
[1757529648625,0.90237879,113680.0,113670.0,0.01279]
[1757529649634,0.54157879,113680.0,113670.0,0.01279]
[1757529650128,0.17444532,113680.0,113670.0,0.01279]
[1757529650519,0.17444532,113680.0,113670.0,0.12992347]
[1757529650726,0.17444532,113680.0,113670.0,0.01279]
[1757529651030,0.29157879,113680.0,113670.0,0.01279]
[1757529652635,0.05731185,113680.0,113670.0,0.01279]
[1757529652837,0.29157879,113680.0,113670.0,0.01279]
[1757529653228,0.54157879,113680.0,113670.0,0.01279]
[1757529653735,0.90237879,113680.0,113670.0,0.01279]
[1757529655828,0.66811185,113680.0,113670.0,0.01279]
[1757529656030,0.90237879,113680.0,113670.0,0.01279]
[1757529657537,0.94976932,113680.0,113670.0,0.01279]
[1757529659735,1.90477337,113680.0,113670.0,0.01279]
[1757529660128,1.7876399,113680.0,113670.0,0.01279]
[1757529661640,1.7876399,113680.0,113670.0,0.00979]
[1757529661837,1.7876399,113680.0,113670.0,0.01079]
[1757529662841,1.90477337,113680.0,113670.0,0.01079]
[1757529663055,0.9655199,113680.0,113670.0,0.01079]
[1757529663345,1.7875599,113680.0,113670.0,0.00979]
[1757529665241,1.72441879,113680.0,113670.0,0.00979]
[1757529665949,0.66811185,113680.0,113670.0,0.00979]
[1757529666142,1.72425879,113680.0,113670.0,0.00979]
[1757529667645,1.77155354,113680.0,113670.0,0.00979]
[1757529668950,1.77155354,113680.0,113640.0,0.3608]
[1757529669250,1.77155354,113680.0,113600.0,0.38189]
[1757529669251,0.03611,113610.0,113600.0,0.38189]
[1757529669441,0.17478532,113610.0,113600.0,0.02109]
[1757529669643,0.17478532,113610.0,113600.0,0.38189]
[1757529669945,0.05765185,113610.0,113600.0,0.38189]
[1757529670142,0.04479185,113610.0,113600.0,0.51936696]
[1757529670343,0.04479185,113610.0,113600.0,0.51069347]
[1757529670553,0.05765185,113610.0,113600.0,0.50302347]
[1757529670744,0.05765185,113610.0,113600.0,0.38589]
[1757529670944,0.17478532,113610.0,113600.0,0.38589]
[1757529671652,0.17478532,113610.0,113600.0,0.38989]
[1757529672255,0.17478532,113610.0,113600.0,0.02909]
[1757529673547,0.17478532,113610.0,113600.0,0.008]
[1757529674350,0.53558532,113610.0,113600.0,0.008]
[1757529674855,0.53558532,113610.0,113600.0,0.02909]
[1757529680552,0.41845185,113610.0,113600.0,0.02909]
[1757529680954,0.53558532,113610.0,113600.0,0.02909]
[1757529686062,0.53558532,113610.0,113600.0,0.008]
[1757529686454,0.53558532,113610.0,113600.0,0.03089]
[1757529690465,0.59431204,113610.0,113600.0,0.03089]
[1757529693363,0.77017223,113610.0,113600.0,0.008]
[1757529693767,0.77017223,113610.0,113600.0,0.03089]
[1757529697674,0.81744606,113610.0,113600.0,0.03089]
[1757529698768,1.08331334,113610.0,113600.0,0.008]
[1757529698968,1.19603242,113610.0,113600.0,0.008]
[1757529699163,0.03532,113590.0,113580.0,0.04070128]
[1757529699473,0.25853511,113590.0,113580.0,0.40150128]
[1757529699768,0.45593715,113590.0,113580.0,0.40150128]
[1757529700372,0.45593715,113590.0,113580.0,0.40650128]
[1757529700870,0.81673715,113590.0,113580.0,0.04570128]
[1757529701771,0.81673715,113590.0,113580.0,0.04170128]
[1757529701970,0.81673715,113590.0,113580.0,0.04370128]
[1757529702270,0.64087696,113590.0,113580.0,0.04370128]
[1757529703172,0.81673715,113590.0,113580.0,0.04370128]
[1757529707274,1.63749715,113590.0,113580.0,0.04370128]
[1757529707766,1.59900946,113590.0,113580.0,0.04370128]
[1757529707971,1.59014223,113590.0,113580.0,0.04370128]
[1757529709669,1.59014223,113590.0,113580.0,0.003]
[1757529710064,0.76938223,113590.0,113580.0,0.02589]
[1757529710270,1.59006223,113590.0,113580.0,0.02589]
[1757529710673,1.59910422,113590.0,113580.0,0.02589]
[1757529711973,0.01353,113570.0,113560.0,0.02313]
[1757529712165,0.21090019,113570.0,113560.0,0.02313]
[1757529712366,0.23244204,113570.0,113560.0,0.55979019]
[1757529712567,0.02154185,113570.0,113560.0,1.81941038]
[1757529712871,0.21893352,113580.0,113570.0,0.03017]
[1757529713075,0.23246342,113580.0,113570.0,0.20603019]
[1757529714178,0.23246342,113580.0,113570.0,0.20803019]
[1757529714877,0.23246342,113580.0,113570.0,0.21003019]
[1757529718772,0.23246342,113580.0,113570.0,0.57083019]
[1757529719473,0.02156323,113580.0,113570.0,0.82083019]
[1757529720478,0.02156323,113580.0,113570.0,0.64497]
[1757529720680,0.04307323,113580.0,113570.0,0.82083019]
[1757529720875,0.23246342,113580.0,113570.0,0.64497]
[1757529721081,0.40832361,113580.0,113570.0,1.20841]
[1757529721470,0.23246342,113580.0,113570.0,1.38427019]
[1757529723481,0.23246342,113580.0,113570.0,1.39131019]
[1757529723783,0.21893342,113580.0,113570.0,1.39131019]
[1757529724082,0.04307323,113580.0,113570.0,1.39131019]
[1757529724884,0.21893342,113580.0,113570.0,1.39131019]
[1757529726379,0.21893342,113580.0,113570.0,0.57083019]
[1757529726574,0.40832361,113580.0,113570.0,0.56379019]
[1757529726784,0.40832361,113580.0,113570.0,1.20825]
[1757529727180,0.40832361,113580.0,113570.0,0.38793]
[1757529727382,0.40832361,113580.0,113570.0,1.20825]
[1757529728787,0.23246342,113580.0,113570.0,1.38411019]
[1757529729582,0.23246342,113580.0,113570.0,1.38403019]
[1757529729785,0.40832361,113580.0,113570.0,1.38403019]
[1757529730190,0.40832361,113580.0,113570.0,1.20817]
[1757529730383,0.40832361,113580.0,113570.0,1.38403019]
[1757529730780,0.02156323,113580.0,113570.0,1.83461555]
[1757529730983,0.04735492,113620.0,113610.0,0.03017]
[1757529731285,0.18939019,113630.0,113610.0,1.74783019]
[1757529731590,0.21090019,113630.0,113620.0,0.19899019]
[1757529731989,0.21090019,113630.0,113620.0,0.55979019]
[1757529732192,0.21090019,113630.0,113620.0,0.38393]
[1757529732491,0.21090019,113630.0,113620.0,0.55979019]
[1757529732890,0.21090019,113630.0,113620.0,0.38393]
[1757529733094,0.21090019,113630.0,113620.0,0.55979019]
[1757529733392,0.21090019,113630.0,113620.0,0.38393]
[1757529733583,0.38676038,113630.0,113620.0,0.38393]
[1757529733789,0.99756038,113630.0,113620.0,0.02313]
[1757529734594,1.00156038,113630.0,113620.0,0.02313]
[1757529734895,1.07361144,113630.0,113620.0,0.02313]
[1757529735094,1.07161144,113630.0,113620.0,0.02313]
[1757529735294,1.07261144,113630.0,113620.0,0.02313]
[1757529735689,1.07061144,113630.0,113620.0,0.02313]
[1757529735887,1.07161144,113630.0,113620.0,0.02313]
[1757529736595,0.01353,113610.0,113600.0,0.57246019]
[1757529736799,0.21090019,113610.0,113600.0,0.55979019]
[1757529736996,0.21090019,113610.0,113600.0,0.38393]
[1757529737199,0.21090019,113610.0,113600.0,0.84309]
[1757529737404,0.21090019,113610.0,113600.0,0.02313]
[1757529737695,0.38676038,113610.0,113600.0,0.02313]
[1757529737902,0.21090019,113610.0,113600.0,0.02513]
[1757529738496,0.38676038,113610.0,113600.0,0.02513]
[1757529738699,0.21090019,113610.0,113600.0,0.02413]
[1757529739399,0.38676038,113610.0,113600.0,0.02413]
[1757529739902,0.21090019,113610.0,113600.0,0.02313]
[1757529742105,0.38676038,113610.0,113600.0,0.02313]
[1757529742303,0.21090019,113610.0,113600.0,0.02313]
[1757529742806,0.38676038,113610.0,113600.0,0.02313]
[1757529743005,0.40818379,113610.0,113600.0,0.02313]
[1757529743906,0.23232571,113610.0,113600.0,0.02313]
[1757529745209,0.4081859,113610.0,113600.0,0.02313]
[1757529747601,0.01375,113600.0,113590.0,0.3608]
[1757529747809,0.7692259,113600.0,113590.0,0.02215]
[1757529748004,0.01375,113590.0,113580.0,1.18044]
[1757529748204,0.21103571,113590.0,113580.0,1.18044]
[1757529748603,0.23256571,113590.0,113580.0,0.84179]
[1757529748804,0.05670552,113590.0,113580.0,1.20259]
[1757529749005,0.23256571,113590.0,113580.0,1.20259]
[1757529749204,0.23256571,113590.0,113580.0,1.37845019]
[1757529749603,0.23256571,113590.0,113580.0,1.01765019]
[1757529750107,0.23256571,113590.0,113580.0,0.84179]
[1757529750300,0.17398625,113590.0,113580.0,0.84179]
[1757529750606,0.17398625,113590.0,113580.0,0.84379]
[1757529751103,0.17398625,113590.0,113580.0,0.84579]
[1757529752206,0.17398625,113590.0,113580.0,1.20659]
[1757529754608,0.05670552,113590.0,113580.0,1.20659]
[1757529754811,0.17398625,113590.0,113580.0,1.20659]
[1757529756910,0.17398625,113590.0,113580.0,1.21926]
[1757529757209,0.16023625,113590.0,113580.0,1.33654073]
[1757529759408,0.17398625,113590.0,113580.0,1.33654073]
[1757529760708,0.05670552,113590.0,113580.0,1.33654073]
[1757529760898,0.17398625,113590.0,113580.0,1.33654073]
[1757529761605,0.04295552,113590.0,113580.0,1.33654073]
[1757529761806,0.02142552,113590.0,113580.0,1.70382146]
[1757529762007,0.02142552,113590.0,113580.0,1.46926]
[1757529762202,0.51303625,113610.0,113580.0,1.70382146]
[1757529762407,0.02153,113600.0,113590.0,0.51290073]
[1757529762610,0.04301845,113600.0,113590.0,0.51290073]
[1757529763710,0.04301845,113600.0,113590.0,0.51390073]
[1757529764211,0.04301845,113600.0,113590.0,0.51490073]
[1757529765008,0.04301845,113600.0,113590.0,0.76490073]
[1757529765214,0.02148845,113600.0,113590.0,0.76490073]
[1757529765417,0.02153,113610.0,113600.0,0.00704]
[1757529765609,0.02150679,113610.0,113600.0,1.30436073]
[1757529765810,0.02150679,113610.0,113600.0,1.18708]
[1757529766014,0.02150679,113610.0,113600.0,1.30436073]
[1757529767614,0.02150679,113610.0,113600.0,1.18708]
[1757529767915,0.02150679,113610.0,113600.0,1.30436073]
[1757529770721,0.02150679,113610.0,113600.0,0.50727073]
[1757529770921,0.02150679,113610.0,113600.0,1.32631073]
[1757529771223,0.04303679,113610.0,113600.0,0.50727073]
[1757529771621,0.17330752,113610.0,113600.0,0.38295]
[1757529771822,0.17330752,113610.0,113600.0,1.20195]
[1757529772023,0.17330752,113610.0,113600.0,0.84115]
[1757529772920,0.17330752,113610.0,113600.0,0.02215]
[1757529773115,0.17330752,113610.0,113590.0,1.20206]
[1757529773116,0.03401,113600.0,113590.0,1.20206]
[1757529773311,0.17279752,113600.0,113590.0,1.20206]
[1757529774825,0.17279752,113600.0,113590.0,1.20306]
[1757529775126,0.17279752,113600.0,113590.0,1.20406]
[1757529775630,0.17279752,113600.0,113590.0,1.20306]
[1757529776433,0.17279752,113600.0,113590.0,1.20206]
[1757529778030,0.05551679,113600.0,113590.0,1.2091]
[1757529778235,0.17279752,113600.0,113590.0,1.2091]
[1757529778635,0.02150679,113600.0,113590.0,1.57638073]
[1757529780237,0.02150679,113600.0,113590.0,1.4591]
[1757529780433,0.02150679,113600.0,113590.0,1.57638073]
[1757529785141,0.02150679,113600.0,113590.0,1.84028073]
[1757529785738,0.02150679,113600.0,113590.0,1.95756146]
[1757529785930,0.02029347,113620.0,113610.0,0.00383]
[1757529786127,0.02029347,113620.0,113610.0,1.30047073]
[1757529786338,0.02029347,113620.0,113610.0,1.66999158]
[1757529786544,0.03477,113630.0,113620.0,0.0223]
[1757529786838,0.15205073,113630.0,113620.0,0.3831]
[1757529787639,0.15205073,113630.0,113620.0,1.20162]
[1757529787842,0.15305073,113630.0,113620.0,1.20162]
[1757529788436,0.15405073,113630.0,113620.0,1.20162]
[1757529789238,0.03677,113630.0,113620.0,1.20162]
[1757529789438,0.15405073,113630.0,113620.0,1.20162]
[1757529790241,0.15405073,113630.0,113620.0,1.20154]
[1757529793752,0.03677,113630.0,113620.0,1.20154]
[1757529793945,0.15405073,113630.0,113620.0,1.20154]
[1757529794834,0.002,113630.0,113620.0,1.33149073]
[1757529797447,0.11928073,113630.0,113620.0,1.33149073]
[1757529798039,0.16173133,113630.0,113620.0,1.33117073]
[1757529798441,0.16173133,113630.0,113620.0,1.21389]
[1757529798641,0.17472133,113630.0,113620.0,1.20122]
[1757529799043,0.17472133,113630.0,113620.0,0.3831]
[1757529799248,0.17472133,113630.0,113620.0,1.20122]
[1757529799638,0.17472133,113630.0,113620.0,0.3831]
[1757529799839,0.0574406,113630.0,113620.0,1.20118]
[1757529800044,0.17472133,113630.0,113620.0,1.20118]
[1757529800650,0.17472133,113630.0,113620.0,1.20114]
[1757529802354,0.17472133,113630.0,113620.0,0.84034]
[1757529803155,0.17472133,113630.0,113620.0,1.20114]
[1757529805758,0.17472133,113630.0,113620.0,1.20098]
[1757529805958,0.17472133,113630.0,113620.0,0.3831]
[1757529806155,0.17472133,113630.0,113620.0,1.20094]
[1757529806855,0.01294,113620.0,113610.0,0.3608]
[1757529807046,0.26910146,113620.0,113610.0,1.20158]
[1757529807253,0.29053206,113620.0,113610.0,0.84078]
[1757529807550,0.29053206,113620.0,113610.0,1.20158]
[1757529810856,0.17325133,113620.0,113610.0,1.20158]
[1757529811955,0.0559706,113620.0,113610.0,1.20158]
[1757529812158,0.17325133,113620.0,113610.0,1.20158]
[1757529812459,0.40758324,113620.0,113610.0,1.37738632]
[1757529812759,0.40758324,113620.0,113610.0,1.20158]
[1757529812960,0.40758324,113620.0,113610.0,1.37738632]
[1757529813661,0.40758324,113620.0,113610.0,1.20158]
[1757529815564,0.40758324,113620.0,113610.0,1.37738632]
[1757529815764,0.23177692,113620.0,113610.0,1.39005632]
[1757529816960,0.21034632,113620.0,113610.0,1.39005632]
[1757529817162,0.23176187,113620.0,113610.0,1.39005632]
[1757529817766,0.23176187,113620.0,113610.0,1.21425]
[1757529818068,0.40756819,113620.0,113610.0,1.37738632]
[1757529819771,0.40756819,113620.0,113610.0,1.20158]
[1757529821071,0.40756819,113620.0,113610.0,0.38374]
[1757529821271,0.40756819,113620.0,113610.0,1.20118]
[1757529821573,0.40756819,113620.0,113610.0,0.02294]
[1757529821871,0.40756819,113620.0,113610.0,0.84034]
[1757529822572,0.40756819,113620.0,113610.0,1.20114]
[1757529822865,0.40856819,113620.0,113610.0,0.38374]
[1757529823065,0.40856819,113620.0,113610.0,1.2011]
[1757529823572,0.40756819,113620.0,113610.0,1.2011]
[1757529823965,0.40756819,113620.0,113610.0,0.38374]
[1757529824272,0.40756819,113620.0,113610.0,1.2011]
[1757529824871,0.40756819,113620.0,113610.0,0.8403]
[1757529825170,0.40856819,113620.0,113610.0,0.8403]
[1757529825773,0.40956819,113620.0,113610.0,0.8403]
[1757529826365,0.40856819,113620.0,113610.0,0.8403]
[1757529826767,0.40756819,113620.0,113610.0,0.8403]
[1757529827371,0.40856819,113620.0,113610.0,0.8403]
[1757529827674,0.40956819,113620.0,113610.0,0.8403]
[1757529828074,0.40856819,113620.0,113610.0,0.8403]
[1757529828673,0.40756819,113620.0,113610.0,0.8403]
[1757529828874,0.40756819,113620.0,113610.0,0.8401]
[1757529829274,0.41641167,113620.0,113610.0,0.8401]
[1757529829475,0.41741167,113620.0,113610.0,0.8401]
[1757529829973,0.41841167,113620.0,113610.0,0.8401]
[1757529832074,0.58537451,113620.0,113610.0,0.84002]
[1757529832371,0.40956819,113620.0,113610.0,0.84002]
[1757529833075,0.41738961,113620.0,113610.0,0.84002]
[1757529833376,0.41838961,113620.0,113610.0,0.84002]
[1757529833975,0.41738961,113620.0,113610.0,0.84002]
[1757529834172,0.40956819,113620.0,113610.0,0.84002]
[1757529837677,0.45693197,113620.0,113610.0,0.84002]
[1757529839777,0.45694519,113620.0,113610.0,0.84002]
[1757529840377,0.45694519,113620.0,113610.0,0.02294]
[1757529841374,0.01332,113610.0,113600.0,0.40148939]
[1757529841681,0.40751141,113610.0,113600.0,1.21828939]
[1757529841883,0.40751141,113610.0,113600.0,0.40148939]
[1757529842068,0.76831141,113610.0,113600.0,0.81676]
[1757529842269,0.81567519,113610.0,113600.0,0.81676]
[1757529842577,0.03447,113600.0,113590.0,0.38347]
[1757529842778,0.41646784,113600.0,113590.0,1.20023]
[1757529842979,0.40751141,113600.0,113590.0,1.20023]
[1757529843274,0.40751141,113600.0,113590.0,0.83943]
[1757529843483,0.40751141,113600.0,113590.0,1.20023]
[1757529844379,0.40751141,113600.0,113590.0,1.20123]
[1757529844580,0.40751141,113600.0,113590.0,1.20223]
[1757529844882,0.40751141,113600.0,113590.0,1.20123]
[1757529845283,0.40751141,113600.0,113590.0,1.20023]
[1757529851087,0.40783278,113600.0,113590.0,1.20023]
[1757529852591,0.4078315,113600.0,113590.0,1.20023]
[1757529853085,0.23202518,113600.0,113590.0,1.20023]
[1757529853287,0.4078315,113600.0,113590.0,1.20023]
[1757529863200,0.05621886,113600.0,113590.0,1.37603632]
[1757529863497,0.02174886,113600.0,113590.0,1.74066632]
[1757529863697,0.19755518,113600.0,113590.0,1.74066632]
[1757529864295,0.02174886,113600.0,113590.0,1.99066632]
[1757529864900,0.17580632,113610.0,113590.0,1.99066632]
[1757529865095,0.21884778,113610.0,113600.0,0.55934632]
[1757529866101,0.21984778,113610.0,113600.0,0.55934632]
[1757529866995,0.23259778,113610.0,113600.0,0.55934632]
[1757529868095,0.23159778,113610.0,113600.0,0.55934632]
[1757529868292,0.05579146,113610.0,113600.0,0.55934632]
[1757529868494,0.23159778,113610.0,113600.0,0.55934632]
[1757529868899,0.23159778,113610.0,113600.0,1.19946]
[1757529869502,0.23159778,113610.0,113600.0,1.19942]
[1757529871197,0.23159778,113610.0,113600.0,1.37522632]
[1757529874305,0.17301388,113610.0,113600.0,1.19942]
[1757529876006,0.17301388,113610.0,113600.0,1.19918]
[1757529876994,0.05579146,113610.0,113600.0,0.38354]
[1757529877202,0.9010363,113610.0,113600.0,0.83834]
[1757529877598,0.9010363,113610.0,113600.0,0.02274]
[1757529878005,0.94840008,113610.0,113600.0,0.02274]
[1757529878601,0.94940008,113610.0,113600.0,0.02274]
[1757529878803,0.03403,113600.0,113590.0,1.19902]
[1757529879003,0.2902363,113600.0,113590.0,0.83822]
[1757529879194,0.6510363,113600.0,113590.0,0.83822]
[1757529879504,0.6510363,113600.0,113590.0,0.02274]
[1757529880406,0.69840008,113600.0,113590.0,0.02274]
[1757529881300,0.6510363,113600.0,113590.0,0.02274]
[1757529882401,0.2902363,113600.0,113590.0,0.02274]
[1757529884309,0.29904637,113600.0,113590.0,0.02274]
[1757529885905,0.29904637,113600.0,113580.0,1.17628]
[1757529885906,0.03403,113590.0,113580.0,0.3608]
[1757529886108,0.17301388,113590.0,113580.0,1.17608]
[1757529886810,0.17301388,113590.0,113580.0,1.18500792]
[1757529887011,0.17301388,113590.0,113580.0,1.18600792]
[1757529887206,0.17301388,113590.0,113580.0,1.30323034]
[1757529887910,0.17301388,113590.0,113580.0,1.30423034]
[1757529893120,0.17301388,113590.0,113580.0,0.38554]
[1757529893320,0.78381388,113590.0,113580.0,0.02474]
[1757529895127,0.9010363,113590.0,113580.0,0.02474]
[1757529895328,0.78381388,113590.0,113580.0,0.02474]
[1757529896818,0.6510363,113590.0,113580.0,0.02474]
[1757529898033,0.92141499,113590.0,113580.0,0.002]
[1757529898326,0.92141499,113590.0,113550.0,0.3608]
[1757529898327,1.03863741,113590.0,113550.0,0.3608]
[1757529898522,0.15232242,113560.0,113550.0,0.75397]
[1757529898932,0.26954484,113560.0,113550.0,0.83745]
[1757529899124,0.29124811,113560.0,113550.0,0.83745]
[1757529899833,0.29124811,113560.0,113550.0,0.83845]
[1757529900023,0.05680327,113560.0,113550.0,0.83845]
[1757529900333,0.29124811,113560.0,113550.0,0.83845]
[1757529900626,0.29124811,113560.0,113550.0,0.84145]
[1757529900832,0.29124811,113560.0,113550.0,0.84445]
[1757529901029,0.17402569,113560.0,113550.0,0.84445]
[1757529902134,0.16020569,113560.0,113550.0,0.96167242]
[1757529902330,0.16020569,113560.0,113550.0,1.32247242]
[1757529902729,0.17402569,113560.0,113550.0,1.20525]
[1757529903624,0.13104242,113560.0,113550.0,1.18268]
[1757529904634,0.13104242,113560.0,113550.0,0.3678]
[1757529904837,0.15232242,113560.0,113550.0,1.20513]
[1757529905027,0.15232242,113560.0,113550.0,0.84433]
[1757529905225,0.29119012,113560.0,113550.0,0.84433]
[1757529905433,0.05674528,113560.0,113550.0,0.84433]
[1757529905730,0.29119012,113560.0,113550.0,0.84433]
[1757529906738,0.1739677,113560.0,113550.0,0.84433]
[1757529907232,0.29119012,113560.0,113550.0,0.84433]
[1757529907835,0.26954484,113560.0,113550.0,0.84433]
[1757529908131,0.29117962,113560.0,113550.0,0.84433]
[1757529908736,0.1739572,113560.0,113550.0,0.84433]
[1757529910040,0.15232242,113560.0,113550.0,1.20513]
[1757529910242,0.17395063,113560.0,113550.0,1.20513]
[1757529913141,0.29117305,113560.0,113550.0,0.84413]
[1757529914942,0.05672821,113560.0,113550.0,1.20493]
[1757529915241,0.17395063,113560.0,113550.0,1.20493]
[1757529916754,0.17395063,113560.0,113550.0,0.39037]
[1757529917340,0.29117305,113560.0,113550.0,1.20477]
[1757529917537,0.29117305,113560.0,113550.0,1.20473]
[1757529918738,0.29117305,113560.0,113550.0,0.39037]
[1757529919040,0.90197305,113560.0,113550.0,0.007]
[1757529920330,0.90197305,113560.0,113550.0,0.02957]
[1757529921835,0.90197305,113560.0,113550.0,0.007]
[1757529922231,0.90197305,113560.0,113550.0,0.02943]
[1757529923350,0.97085676,113560.0,113550.0,0.02943]
[1757529923540,0.73641192,113560.0,113550.0,0.02943]
[1757529923740,0.97085676,113560.0,113550.0,0.02943]
[1757529924335,0.53475063,113560.0,113550.0,0.02943]
[1757529924737,0.29117305,113560.0,113550.0,0.02943]
[1757529925134,0.65197305,113560.0,113550.0,0.02943]
[1757529927737,0.69933683,113560.0,113550.0,0.02943]
[1757529928145,0.58211441,113560.0,113550.0,0.14665242]
[1757529928345,0.58211441,113560.0,113550.0,0.02943]
[1757529928846,0.22131441,113560.0,113550.0,0.02943]
[1757529929546,0.17395063,113560.0,113550.0,0.02943]
[1757529930038,0.22125141,113560.0,113550.0,0.02943]
[1757529930235,0.17395063,113560.0,113550.0,0.02943]
[1757529930646,0.29117305,113560.0,113550.0,0.02943]
[1757529931147,0.35431295,113560.0,113550.0,0.02943]
[1757529931336,0.29117305,113560.0,113550.0,0.02943]
[1757529934355,0.45604021,113560.0,113550.0,0.02943]
[1757529934945,0.81684021,113560.0,113550.0,0.007]
[1757529935145,0.76953701,113560.0,113550.0,0.007]
[1757529935446,0.76953701,113560.0,113550.0,0.02943]
[1757529935848,0.94554141,113560.0,113550.0,0.007]
[1757529936255,2.07950475,113560.0,113550.0,0.007]
[1757529937846,2.12680663,113560.0,113550.0,0.007]
[1757529939356,1.87680663,113560.0,113550.0,0.007]
[1757529939654,1.87672663,113560.0,113550.0,0.02943]
[1757529940255,1.87672663,113560.0,113550.0,0.007]
[1757529943050,2.12664663,113560.0,113550.0,0.007]
[1757529943255,2.14248465,113560.0,113550.0,0.007]
[1757529943456,0.03597,113540.0,113530.0,0.38358233]
[1757529943653,0.23360261,113540.0,113530.0,0.38358233]
[1757529944460,0.23360261,113540.0,113530.0,0.02278233]
[1757529944659,0.23360261,113540.0,113530.0,0.02778233]
[1757529944860,0.23460261,113540.0,113530.0,0.03478233]
[1757529945756,0.59540261,113540.0,113530.0,0.03478233]
[1757529946464,0.77140701,113540.0,113530.0,0.03478233]
[1757529947662,0.41060701,113540.0,113530.0,0.03478233]
[1757529954564,0.05859821,113540.0,113530.0,0.03478233]
[1757529954764,0.41060701,113540.0,113530.0,0.03478233]
[1757529968676,0.05859821,113540.0,113530.0,0.03478233]
[1757529969181,0.41060701,113540.0,113530.0,0.03478233]
[1757529971279,0.05859821,113540.0,113530.0,0.03478233]
[1757529971481,0.41060701,113540.0,113530.0,0.03478233]
[1757529974288,0.05859821,113540.0,113530.0,0.03478233]
[1757529974488,0.41060701,113540.0,113530.0,0.03478233]
[1757529975583,0.05859821,113540.0,113530.0,0.83334673]
[1757529975789,0.02262821,113540.0,113530.0,0.83334673]
[1757529975989,0.22107261,113540.0,113530.0,0.83334673]
[1757529976391,0.23482261,113540.0,113530.0,0.82158673]
[1757529976592,0.41082701,113540.0,113530.0,1.63438673]
[1757529977594,0.05881821,113540.0,113530.0,1.63438673]
[1757529977790,0.41082701,113540.0,113530.0,1.63438673]
[1757529977993,0.41082701,113540.0,113530.0,0.39558233]
[1757529978288,0.41082701,113540.0,113530.0,1.20834233]
[1757529979698,0.23482261,113540.0,113530.0,1.38434673]
[1757529980799,0.22107261,113540.0,113530.0,1.63434673]
[1757529982397,0.19863261,113540.0,113530.0,1.63434673]
[1757529982587,0.02262821,113540.0,113530.0,1.38434673]
[1757529982794,0.02262821,113540.0,113530.0,1.89841843]
[1757529983192,0.02262821,113540.0,113530.0,1.72241403]
[1757529983389,0.02262821,113540.0,113530.0,1.89841843]
[1757529983795,0.02262821,113540.0,113530.0,1.72241403]
[1757529983997,0.02262821,113540.0,113530.0,1.81035113]
[1757529984198,0.02262821,113540.0,113530.0,1.63434673]
[1757529984698,0.01262821,113540.0,113530.0,1.89841843]
[1757529984898,0.001,113540.0,113530.0,1.89841843]
[1757529987592,0.001,113540.0,113530.0,1.91601189]
[1757529987797,0.1975644,113560.0,113550.0,0.03119]
[1757529987997,0.02156,113560.0,113550.0,1.20447]
[1757529988199,0.1975644,113560.0,113550.0,1.3804744]
[1757529988900,0.1975644,113560.0,113550.0,1.3824744]
[1757529989594,0.02156,113560.0,113550.0,1.3824744]
[1757529989795,0.1975644,113560.0,113550.0,1.3824744]
[1757529990194,0.1975644,113560.0,113550.0,1.3864744]
[1757529991001,0.1975644,113560.0,113550.0,1.3844744]
[1757529991899,0.1760044,113560.0,113550.0,1.3844744]